Workbook

Sheet Income statement
A2: Condensed Income Statement
A3: NOK million | B3: Q1 2015 | C3: Q2 2015 | D3: YTD Q2 2015 | E3: Q3 2015 | F3: YTD Q3 2015 | G3: Q4 2015 | H3: YTD Q4 2015 | I3: Q1 2016 | J3: Q2 2016 | K3: YTD Q2 2016 | L3: Q3 2016 | M3: YTD Q3 2016 | N3: Q4 2016 | O3: YTD Q4 2016 | P3: Q1 2017 | Q3: Q2 2017 | R3: YTD Q2 2017 | S3: Q3 2017 | T3: YTD Q3 2017 | U3: Q4 2017 | V3: YTD Q4 2017 | W3: Q1 2018 | X3: Q2 2018 | Y3: YTD Q2 2018 | Z3: Q3 2018 | AA3: YTD Q3 2018 | AB3: Q4 2018 | AC3: YTD Q4 2018
A4: Operating revenues | B4: 7541 | C4: 7705 | D4: 15246 | E4: 8381 | F4: 23627 | G4: 9571 | H4: 33198 | I4: 8610 | J4: 9433 | K4: 18043 | L4: 9429 | M4: 27472 | N4: 10286 | O4: 37758 | P4: 9081 | Q4: 9771 | R4: 18852 | S4: 9858 | T4: 28710 | U4: 10851 | V4: 39561 | W4: 9711 | X4: 10017 | Y4: =W4+X4 -> 19728 | Z4: 10126 | AA4: =Y4+Z4 -> 29854 | AB4: 10983 | AC4: =+AA4+AB4 -> 40837
A5: Operating expenses | B5: -6578 | C5: -6643 | D5: -13221 | E5: -7123 | F5: -20344 | G5: -8188 | H5: -28532 | I5: -7514 | J5: -8152 | K5: -15666 | L5: -7961 | M5: -23627 | N5: -8687 | O5: -32314 | P5: -7893 | Q5: -8446 | R5: -16339 | S5: -8297 | T5: -24636 | U5: -9106 | V5: -33742 | W5: -8516 | X5: -8594 | Y5: =W5+X5 -> -17110 | Z5: -8477 | AA5: =Y5+Z5 -> -25587 | AB5: -9259 | AC5: =+AA5+AB5 -> -34846
A6: Depreciation, amortisation and write-downs | B6: -238 | C6: -273 | D6: -511 | E6: -265 | F6: -776 | G6: -281 | H6: -1057 | I6: -279 | J6: -285 | K6: -564 | L6: -290 | M6: -854 | N6: -292 | O6: -1146 | P6: -288 | Q6: -300 | R6: -588 | S6: -294 | T6: -882 | U6: -302 | V6: -1184 | W6: -298 | X6: -304 | Y6: -602 | Z6: -296 | AA6: -898 | AB6: -316 | AC6: -1214
A7: EBIT (adj.) | B7: =SUM(B4:B6) -> 725 | C7: 789 | D7: 1514 | E7: 993 | F7: 2507 | G7: 1102 | H7: 3609 | I7: 817 | J7: 996 | K7: 1813 | L7: 1178 | M7: 2991 | N7: 1307 | O7: 4298 | P7: 900 | Q7: 1025 | R7: 1925 | S7: 1267 | T7: 3192 | U7: =SUM(U4:U6) -> 1443 | V7: =SUM(V4:V6) -> 4635 | W7: =SUM(W4:W6) -> 897 | X7: =SUM(X4:X6) -> 1119 | Y7: 2016 | Z7: =SUM(Z4:Z6) -> 1353 | AA7: 3369 | AB7: =SUM(AB4:AB6) -> 1408 | AC7: =SUM(AC4:AC6) -> 4777
A8: Other income and expenses | B8: -117 | C8: -55 | D8: -172 | E8: -96 | F8: -268 | G8: -234 | H8: -502 | I8: -30 | J8: -81 | K8: -111 | L8: -149 | M8: -260 | N8: -122 | O8: -382 | P8: -87 | Q8: -116 | R8: -203 | S8: 3 | T8: -200 | U8: -1 | V8: -201 | W8: -27 | X8: -97 | Y8: =W8+X8 -> -124 | Z8: -62 | AA8: =Y8+Z8 -> -186 | AB8: -296 | AC8: =+AA8+AB8 -> -482
A9: Operating profit | B9: =SUM(B7:B8) -> 608 | C9: 734 | D9: 1342 | E9: 897 | F9: 2239 | G9: 868 | H9: 3107 | I9: 787 | J9: 915 | K9: 1702 | L9: 1029 | M9: 2731 | N9: 1185 | O9: 3916 | P9: 813 | Q9: 909 | R9: 1722 | S9: 1270 | T9: 2992 | U9: =SUM(U7:U8) -> 1442 | V9: =SUM(V7:V8) -> 4434 | W9: =SUM(W7:W8) -> 870 | X9: =SUM(X7:X8) -> 1022 | Y9: 1892 | Z9: =SUM(Z7:Z8) -> 1291 | AA9: 3183 | AB9: =SUM(AB7:AB8) -> 1112 | AC9: =SUM(AC7:AC8) -> 4295
A10: Profit from associates and joint ventures | B10: 193 | C10: 538 | D10: 731 | E10: 185 | F10: 916 | G10: 72 | H10: 988 | I10: 253 | J10: 123 | K10: 376 | L10: 141 | M10: 517 | N10: -29 | O10: 488 | P10: 173 | Q10: 115 | R10: 288 | S10: 103 | T10: 391 | U10: -78 | V10: 313 | W10: 86 | X10: 105 | Y10: =W10+X10 -> 191 | Z10: 116 | AA10: =Y10+Z10 -> 307 | AB10: -43 | AC10: =+AA10+AB10 -> 264
A11: Interest, net | B11: -63 | C11: -18 | D11: -81 | E11: -78 | F11: -159 | G11: -33 | H11: -192 | I11: -50 | J11: -47 | K11: -97 | L11: -40 | M11: -137 | N11: -40 | O11: -177 | P11: -37 | Q11: -39 | R11: -76 | S11: -47 | T11: -123 | U11: -26 | V11: -149 | W11: -50 | X11: -32 | Y11: -82 | Z11: -40 | AA11: -122 | AB11: -37 | AC11: =+AA11+AB11 -> -159
A12: Other financial items, net | B12: 12 | C12: 19 | D12: 31 | E12: 11 | F12: 42 | G12: 22 | H12: 64 | I12: 52 | J12: -51 | K12: 1 | L12: 26 | M12: 27 | N12: 38 | O12: 65 | P12: 34 | Q12: -18 | R12: 16 | S12: -14 | T12: 2 | U12: -29 | V12: -27 | W12: -20 | X12: -4 | Y12: -24 | Z12: -3 | AA12: -27 | AB12: -15 | AC12: -42
A13: Profit before taxes | B13: =SUM(B9:B12) -> 750 | C13: 1273 | D13: 2023 | E13: 1015 | F13: 3038 | G13: 929 | H13: 3967 | I13: 1042 | J13: 940 | K13: 1982 | L13: 1156 | M13: 3138 | N13: 1154 | O13: 4292 | P13: 983 | Q13: 967 | R13: 1950 | S13: 1312 | T13: 3262 | U13: =SUM(U9:U12) -> 1309 | V13: =SUM(V9:V12) -> 4571 | W13: =SUM(W9:W12) -> 886 | X13: =SUM(X9:X12) -> 1091 | Y13: 1977 | Z13: =SUM(Z9:Z12) -> 1364 | AA13: 3341 | AB13: =SUM(AB9:AB12) -> 1017 | AC13: =SUM(AC9:AC12) -> 4358
A14: Taxes | B14: -155 | C14: -155 | D14: -310 | E14: -240 | F14: -550 | G14: -172 | H14: -722 | I14: -135 | J14: -200 | K14: -335 | L14: -235 | M14: -570 | N14: -237 | O14: -807 | P14: -185 | Q14: -185 | R14: -370 | S14: -290 | T14: -660 | U14: -320 | V14: -980 | W14: -176 | X14: -234 | Y14: =W14+X14 -> -410 | Z14: -323 | AA14: =Y14+Z14 -> -733 | AB14: -271 | AC14: =+AA14+AB14 -> -1004
A15: Profit for the period for continued operations | B15: =SUM(B13:B14) -> 595 | C15: 1118 | D15: 1713 | E15: 775 | F15: 2488 | G15: 757 | H15: 3245 | I15: 907 | J15: 740 | K15: 1647 | L15: 921 | M15: 2568 | N15: 917 | O15: 3485 | P15: 798 | Q15: 782 | R15: 1580 | S15: 1022 | T15: 2602 | U15: =SUM(U13:U14) -> 989 | V15: =SUM(V13:V14) -> 3591 | W15: =SUM(W13:W14) -> 710 | X15: =SUM(X13:X14) -> 857 | Y15: 1567 | Z15: =SUM(Z13:Z14) -> 1041 | AA15: 2608 | AB15: =SUM(AB13:AB14) -> 746 | AC15: =SUM(AC13:AC14) -> 3354
A16: Gains/profit/loss discontinued operations | B16: 45 | C16: 7 | D16: 52 | E16: 54 | F16: 106 | G16: 0 | H16: 106 | I16: 209 | J16: 319 | K16: 528 | L16: 172 | M16: 700 | N16: 190 | O16: 890 | P16: 312 | Q16: 273 | R16: 585 | S16: 4439 | T16: 5024 | U16: 42 | V16: 5066 | W16: 0 | X16: 0 | Y16: =W16+X16 -> 0 | Z16: 0 | AA16: =Y16+Z16 -> 0
A17: Profit/loss for the period | B17: =SUM(B15:B16) -> 640 | C17: 1125 | D17: 1765 | E17: 829 | F17: 2594 | G17: 757 | H17: 3351 | I17: 1116 | J17: 1059 | K17: 2175 | L17: 1093 | M17: 3268 | N17: 1107 | O17: 4375 | P17: 1110 | Q17: 1055 | R17: 2165 | S17: 5461 | T17: 7626 | U17: =SUM(U15:U16) -> 1031 | V17: =SUM(V15:V16) -> 8657 | W17: =SUM(W15:W16) -> 710 | X17: =SUM(X15:X16) -> 857 | Y17: 1567 | Z17: =SUM(Z15:Z16) -> 1041 | AA17: 2608 | AB17: =+AB15 -> 746 | AC17: =+AC15 -> 3354
A18: Profit/loss attributable to non-controlling interests | B18: 11 | C18: 16 | D18: 27 | E18: 19 | F18: 46 | G18: 10 | H18: 56 | I18: 21 | J18: 42 | K18: 63 | L18: 24 | M18: 87 | N18: -5 | O18: 82 | P18: 15 | Q18: 25 | R18: 40 | S18: 27 | T18: 67 | U18: 8 | V18: 75 | W18: 22 | X18: 29 | Y18: =W18+X18 -> 51 | Z18: 29 | AA18: =Y18+Z18 -> 80 | AB18: 2 | AC18: =+AA18+AB18 -> 82
A19: Profit/loss attributable to owners of the parent | B19: =B17-B18 -> 629 | C19: 1109 | D19: 1738 | E19: 810 | F19: 2548 | G19: 747 | H19: 3295 | I19: 1095 | J19: 1017 | K19: 2112 | L19: 1069 | M19: 3181 | N19: 1112 | O19: 4293 | P19: 1095 | Q19: 1030 | R19: 2125 | S19: 5434 | T19: 7559 | U19: =U17-U18 -> 1023 | V19: =V17-V18 -> 8582 | W19: =W17-W18 -> 688 | X19: =X17-X18 -> 828 | Y19: 1516 | Z19: =Z17-Z18 -> 1012 | AA19: 2528 | AB19: 744 | AC19: =+AA19+AB19 -> 3272
A22: Operating revenues
A23: NOK million | B23: Q1 2015 | C23: Q2 2015 | D23: YTD Q2 2015 | E23: Q3 2015 | F23: YTD Q3 2015 | G23: Q4 2015 | H23: YTD Q4 2015 | I23: Q1 2016 | J23: Q2 2016 | K23: YTD Q2 2016 | L23: Q3 2016 | M23: YTD Q3 2016 | N23: Q4 2016 | O23: YTD Q4 2016 | P23: Q1 2017 | Q23: Q2 2017 | R23: YTD Q2 2017 | S23: Q3 2017 | T23: YTD Q3 2017 | U23: Q4 2017 | V23: YTD Q4 2017 | W23: Q1 2018 | X23: Q2 2018 | Y23: YTD Q2 2018 | Z23: Q3 2018 | AA23: YTD Q3 2018 | AB23: Q4 2018 | AC23: YTD Q4 2018
A24: Orkla Group | B24: =B31+B25+B34 -> 7541 | C24: =C31+C25+C34 -> 7705 | D24: 15246 | E24: 8381 | F24: 23627 | G24: 9571 | H24: 33198 | I24: 8610 | J24: 9433 | K24: 18043 | L24: 9429 | M24: 27472 | N24: 10286 | O24: 37758 | P24: 9081 | Q24: 9771 | R24: 18852 | S24: 9858 | T24: 28710 | U24: =U25+U31+U34 -> 10851 | V24: =V25+V31+V34 -> 39561 | W24: =W25+W31+W34 -> 9711 | X24: =X25+X31+X34 -> 10017 | Y24: 19728 | Z24: =Z25+Z31+Z34 -> 10126 | AA24: 29854 | AB24: =AB25+AB31+AB34 -> 10983 | AC24: =AC25+AC31+AC34 -> 40837
A25: Branded Consumer Goods | B25: =SUM(B26:B30) -> 7220 | C25: =SUM(C26:C30) -> 7404 | D25: 14624 | E25: 8064 | F25: 22688 | G25: 9314 | H25: 32002 | I25: 8362 | J25: 9147 | K25: 17509 | L25: 9179 | M25: 26688 | N25: 9734 | O25: 36422 | P25: 8834 | Q25: 9505 | R25: 18339 | S25: 9584 | T25: 27923 | U25: =SUM(U26:U30) -> 10587 | V25: =SUM(V26:V30) -> 38510 | W25: =SUM(W26:W30) -> 9497 | X25: =SUM(X26:X30) -> 9705 | Y25: 19202 | Z25: =SUM(Z26:Z30) -> 9783 | AA25: =SUM(AA26:AA30) -> 28985 | AB25: =SUM(AB26:AB30) -> 10607 | AC25: 39592
A26: Orkla Foods | B26: 3045 | C26: 3122 | D26: 6167 | E26: 3261 | F26: 9428 | G26: 3822 | H26: 13250 | I26: 3418 | J26: 3967 | K26: 7385 | L26: 3905 | M26: 11290 | N26: 4186 | O26: 15476 | P26: 3758 | Q26: 3977 | R26: 7735 | S26: 4007 | T26: 11742 | U26: 4384 | V26: 16126 | W26: 3852 | X26: 3845 | Y26: =W26+X26 -> 7697 | Z26: 3937 | AA26: =Y26+Z26 -> 11634 | AB26: 4366 | AC26: =AA26+AB26 -> 16000
A27: Orkla Confectionery & Snacks | B27: 1199 | C27: 1344 | D27: 2543 | E27: 1452 | F27: 3995 | G27: 1818 | H27: 5813 | I27: 1457 | J27: 1476 | K27: 2933 | L27: 1501 | M27: 4434 | N27: 1796 | O27: 6230 | P27: 1444 | Q27: 1527 | R27: 2971 | S27: 1525 | T27: 4496 | U27: 1943 | V27: 6439 | W27: 1453 | X27: 1435 | Y27: 2888 | Z27: 1518 | AA27: =Y27+Z27 -> 4406 | AB27: 1840 | AC27: =AA27+AB27 -> 6246
A28: Orkla Care | B28: 1327 | C28: 1157 | D28: 2484 | E28: 1410 | F28: 3894 | G28: 1640 | H28: 5534 | I28: 1655 | J28: 1629 | K28: 3284 | L28: 1726 | M28: 5010 | N28: 1730 | O28: 6740 | P28: 1858 | Q28: 1813 | R28: 3671 | S28: 1878 | T28: 5549 | U28: 1930 | V28: 7479 | W28: 2076 | X28: 2032 | Y28: 4108 | Z28: 1973 | AA28: 6081 | AB28: 1994 | AC28: 8075
A29: Orkla Food Ingredients | B29: 1680 | C29: 1814 | D29: 3494 | E29: 1989 | F29: 5483 | G29: 2115 | H29: 7598 | I29: 1873 | J29: 2121 | K29: 3994 | L29: 2095 | M29: 6089 | N29: 2072 | O29: 8161 | P29: 1813 | Q29: 2234 | R29: 4047 | S29: 2246 | T29: 6293 | U29: 2410 | V29: 8703 | W29: 2182 | X29: 2462 | Y29: 4644 | Z29: 2432 | AA29: 7076 | AB29: 2486 | AC29: 9562
A30: Eliminations Branded Consumer Goods | B30: -31 | C30: -33 | D30: -64 | E30: -48 | F30: -112 | G30: -81 | H30: -193 | I30: -41 | J30: -46 | K30: -87 | L30: -48 | M30: -135 | N30: -50 | O30: -185 | P30: -39 | Q30: -46 | R30: -85 | S30: -72 | T30: -157 | U30: -80 | V30: -237 | W30: -66 | X30: -69 | Y30: -135 | Z30: -77 | AA30: -212 | AB30: -79 | AC30: -291
A31: Orkla Investments | B31: =SUM(B32:B33) -> 315 | C31: =SUM(C32:C33) -> 286 | D31: 601 | E31: 313 | F31: 914 | G31: 252 | H31: 1166 | I31: 245 | J31: 274 | K31: 519 | L31: 240 | M31: 759 | N31: 543 | O31: 1302 | P31: 236 | Q31: 257 | R31: 493 | S31: 266 | T31: 759 | U31: =SUM(U32:U33) -> 268 | V31: =SUM(V32:V33) -> 1027 | W31: =SUM(W32:W33) -> 208 | X31: =SUM(X32:X33) -> 307 | Y31: 515 | Z31: =SUM(Z32:Z33) -> 340 | AA31: 855 | AB31: =SUM(AB32:AB33) -> 370 | AC31: 1225
A32: Hydro Power | B32: 183 | C32: 159 | D32: 342 | E32: 156 | F32: 498 | G32: 192 | H32: 690 | I32: 173 | J32: 186 | K32: 359 | L32: 196 | M32: 555 | N32: 166 | O32: 721 | P32: 182 | Q32: 219 | R32: 401 | S32: 218 | T32: 619 | U32: 247 | V32: 866 | W32: 193 | X32: 235 | Y32: =W32+X32 -> 428 | Z32: 290 | AA32: =Y32+Z32 -> 718 | AB32: 307 | AC32: =AA32+AB32 -> 1025
A33: Financial Investments | B33: 132 | C33: 127 | D33: 259 | E33: 157 | F33: 416 | G33: 60 | H33: 476 | I33: 72 | J33: 88 | K33: 160 | L33: 44 | M33: 204 | N33: 377 | O33: 581 | P33: 54 | Q33: 38 | R33: 92 | S33: 48 | T33: 140 | U33: 21 | V33: 161 | W33: 15 | X33: 72 | Y33: 87 | Z33: 50 | AA33: 137 | AB33: 63 | AC33: 200
A34: HQ/Other business/Eliminations | B34: 6 | C34: 15 | D34: 21 | E34: 4 | F34: 25 | G34: 5 | H34: 30 | I34: 3 | J34: 12 | K34: 15 | L34: 10 | M34: 25 | N34: 9 | O34: 34 | P34: 11 | Q34: 9 | R34: 20 | S34: 8 | T34: 28 | U34: -4 | V34: 24 | W34: 6 | X34: 5 | Y34: 11 | Z34: 3 | AA34: 14 | AB34: =1+5 -> 6 | AC34: 20
A37: Operating profit - EBIT (adj.)
A38: NOK million | B38: Q1 2015 | C38: Q2 2015 | D38: YTD Q2 2015 | E38: Q3 2015 | F38: YTD Q3 2015 | G38: Q4 2015 | H38: YTD Q4 2015 | I38: Q1 2016 | J38: Q2 2016 | K38: YTD Q2 2016 | L38: Q3 2016 | M38: YTD Q3 2016 | N38: Q4 2016 | O38: YTD Q4 2016 | P38: Q1 2017 | Q38: Q2 2017 | R38: YTD Q2 2017 | S38: Q3 2017 | T38: YTD Q3 2017 | U38: Q4 2017 | V38: YTD Q4 2017 | W38: Q1 2018 | X38: Q2 2018 | Y38: YTD Q2 2018 | Z38: Q3 2018 | AA38: YTD Q3 2018 | AB38: Q4 2018 | AC38: YTD Q4 2018
A39: Orkla Group | B39: =B40+B45+B48 -> 725 | C39: =C40+C45+C48 -> 789 | D39: 1514 | E39: 993 | F39: 2507 | G39: 1102 | H39: 3609 | I39: 817 | J39: 996 | K39: 1813 | L39: 1178 | M39: 2991 | N39: 1307 | O39: 4298 | P39: 900 | Q39: 1025 | R39: 1925 | S39: 1267 | T39: 3192 | U39: =U40+U45+U48 -> 1443 | V39: =V40+V45+V48 -> 4635 | W39: =W40+W45+W48 -> 897 | X39: =X40+X45+X48 -> 1119 | Y39: 2016 | Z39: =Z40+Z45+Z48 -> 1353 | AA39: 3369 | AB39: =AB40+AB45+AB48 -> 1408 | AC39: 4777
A40: Branded Consumer Goods | B40: =SUM(B41:B44) -> 769 | C40: =SUM(C41:C44) -> 820 | D40: 1589 | E40: 1055 | F40: 2644 | G40: 1195 | H40: 3839 | I40: 860 | J40: 982 | K40: 1842 | L40: 1209 | M40: 3051 | N40: 1249 | O40: 4300 | P40: 921 | Q40: 1016 | R40: 1937 | S40: 1267 | T40: 3204 | U40: =SUM(U41:U44) -> 1439 | V40: =SUM(V41:V44) -> 4643 | W40: =SUM(W41:W44) -> 942 | X40: =SUM(X41:X44) -> 1050 | Y40: 1992 | Z40: =SUM(Z41:Z44) -> 1310 | AA40: 3302 | AB40: =SUM(AB41:AB44) -> 1369 | AC40: 4671
A41: Orkla Foods | B41: 322 | C41: 389 | D41: 711 | E41: 429 | F41: 1140 | G41: 561 | H41: 1701 | I41: 377 | J41: 463 | K41: 840 | L41: 512 | M41: 1352 | N41: 616 | O41: 1968 | P41: 392 | Q41: 434 | R41: 826 | S41: 540 | T41: 1366 | U41: 689 | V41: 2055 | W41: 400 | X41: 439 | Y41: =W41+X41 -> 839 | Z41: 558 | AA41: =Y41+Z41 -> 1397 | AB41: 651 | AC41: =AA41+AB41 -> 2048
A42: Orkla Confectionery & Snacks | B42: 159 | C42: 132 | D42: 291 | E42: 238 | F42: 529 | G42: 314 | H42: 843 | I42: 177 | J42: 159 | K42: 336 | L42: 260 | M42: 596 | N42: 341 | O42: 937 | P42: 201 | Q42: 186 | R42: 387 | S42: 263 | T42: 650 | U42: 395 | V42: 1045 | W42: 187 | X42: 171 | Y42: 358 | Z42: 278 | AA42: 636 | AB42: 370 | AC42: 1006
A43: Orkla Care | B43: 230 | C43: 178 | D43: 408 | E43: 269 | F43: 677 | G43: 204 | H43: 881 | I43: 247 | J43: 216 | K43: 463 | L43: 307 | M43: 770 | N43: 186 | O43: 956 | P43: 275 | Q43: 245 | R43: 520 | S43: 327 | T43: 847 | U43: 227 | V43: 1074 | W43: 298 | X43: 264 | Y43: 562 | Z43: 314 | AA43: 876 | AB43: 208 | AC43: 1084
A44: Orkla Food Ingredients | B44: 58 | C44: 121 | D44: 179 | E44: 119 | F44: 298 | G44: 116 | H44: 414 | I44: 59 | J44: 144 | K44: 203 | L44: 130 | M44: 333 | N44: 106 | O44: 439 | P44: 53 | Q44: 151 | R44: 204 | S44: 137 | T44: 341 | U44: 128 | V44: 469 | W44: 57 | X44: 176 | Y44: 233 | Z44: 160 | AA44: 393 | AB44: 140 | AC44: 533
A45: Orkla Investments | B45: =SUM(B46:B47) -> 59 | C45: =SUM(C46:C47) -> 84 | D45: 143 | E45: 36 | F45: 179 | G45: 32 | H45: 211 | I45: 34 | J45: 86 | K45: 120 | L45: 57 | M45: 177 | N45: 146 | O45: 323 | P45: 61 | Q45: 74 | R45: 135 | S45: 92 | T45: 227 | U45: =SUM(U46:U47) -> 97 | V45: =SUM(V46:V47) -> 324 | W45: =SUM(W46:W47) -> 54 | X45: =SUM(X46:X47) -> 111 | Y45: 165 | Z45: =SUM(Z46:Z47) -> 94 | AA45: 259 | AB45: =SUM(AB46:AB47) -> 131 | AC45: 390
A46: Hydro Power | B46: 56 | C46: 27 | D46: 83 | E46: 22 | F46: 105 | G46: 49 | H46: 154 | I46: 44 | J46: 53 | K46: 97 | L46: 64 | M46: 161 | N46: 31 | O46: 192 | P46: 54 | Q46: 79 | R46: 133 | S46: 80 | T46: 213 | U46: 103 | V46: 316 | W46: 59 | X46: 97 | Y46: =W46+X46 -> 156 | Z46: 102 | AA46: =Y46+Z46 -> 258 | AB46: 132 | AC46: =AA46+AB46 -> 390
A47: Financial Investments | B47: 3 | C47: 57 | D47: 60 | E47: 14 | F47: 74 | G47: -17 | H47: 57 | I47: -10 | J47: 33 | K47: 23 | L47: -7 | M47: 16 | N47: 115 | O47: 131 | P47: 7 | Q47: -5 | R47: 2 | S47: 12 | T47: 14 | U47: -6 | V47: 8 | W47: -5 | X47: 14 | Y47: 9 | Z47: -8 | AA47: 1 | AB47: -1 | AC47: 0
A48: HQ/Other business | B48: -103 | C48: -115 | D48: -218 | E48: -98 | F48: -316 | G48: -125 | H48: -441 | I48: -77 | J48: -72 | K48: -149 | L48: -88 | M48: -237 | N48: -88 | O48: -325 | P48: -82 | Q48: -65 | R48: -147 | S48: -92 | T48: -239 | U48: -93 | V48: -332 | W48: -99 | X48: -42 | Y48: -141 | Z48: -51 | AA48: -192 | AB48: -92 | AC48: -284

Sheet Cash flow
B3: Cash Flow Statement Orkla Group
C5: 1.1-31.12 | D5: 1.1-31.12 | E5: 1.10-31.12 | F5: 1.10-31.12
B6: Amounts in NOK million | C6: 2018 | D6: 2017 | E6: 2018 | F6: 2017
B8: Cash flow from Branded Consumer Goods incl. HQ
B9: EBIT (adj.) | C9: 4387 | D9: 4311 | E9: 1277 | F9: 1346
B10: Amortisation, depreciation and write-downs | C10: 1154 | D10: 1107 | E10: 301 | F10: 285
B11: Change in net working capital | C11: -190 | D11: 27 | E11: 702 | F11: 417
B12: Net replacement expenditures | C12: -1393 | D12: -1048 | E12: -410 | F12: -308
B13: Cash flow from operations (adj.) | C13: =SUM(C9:C12) -> 3958 | D13: =SUM(D9:D12) -> 4397 | E13: 1870 | F13: 1740
B14: Cash flow effect from "Other income and expenses" and pensions | C14: -496 | D14: -348 | E14: -208 | F14: -198
B15: Cash flow from operations, Branded Consumer Goods incl. HQ | C15: =SUM(C13:C14) -> 3462 | D15: =SUM(D13:D14) -> 4049 | E15: 1662 | F15: 1542
B16: Cash flow from operations, Orkla Investments | C16: 26 | D16: 66 | E16: -11 | F16: -54
B17: Taxes paid | C17: -904 | D17: -934 | E17: -160 | F17: -477
B18: Dividends received and financial items | C18: -1 | D18: 1574 | E18: -73 | F18: -7
B19: Cash flow before capital transactions | C19: =SUM(C15:C18) -> 2583 | D19: =SUM(D15:D18) -> 4755 | E19: =SUM(E15:E18) -> 1418 | F19: =SUM(F15:F18) -> 1004
B20: Dividends paid and net sale/purchase of Orkla shares | C20: -4063 | D20: -7740 | E20: 0 | F20: -4974
B21: Cash flow before expansion | C21: =SUM(C19:C20) -> -1480 | D21: =SUM(D19:D20) -> -2985 | E21: =SUM(E19:E20) -> 1418 | F21: =SUM(F19:F20) -> -3970
B22: Expansion investments | C22: -531 | D22: -206 | E22: -177 | F22: -81
B23: Sold companies | C23: 47 | D23: 12520 | E23: 47 | F23: 12373
B24: Acquired companies | C24: -1080 | D24: -901 | E24: =-258 -> -258 | F24: -164
B25: Net purchases/sales shares and financial assets | C25: 0 | D25: 43 | E25: 0 | F25: -3
B26: Net cash flow | C26: =SUM(C21:C25) -> -3044 | D26: =SUM(D21:D25) -> 8471 | E26: =SUM(E21:E25) -> 1030 | F26: =SUM(F21:F25) -> 8155
B27: Currency translations net interest-bearing liabilities | C27: 21 | D27: -429 | E27: -231 | F27: -191
B28: Change in net interest-bearing liabilities | C28: =-C26-C27 -> 3023 | D28: -8042 | E28: =-E26-E27 -> -799 | F28: =-F26-F27 -> -7964
B29: Net interest-bearing liabilities | C29: 3037 | D29: 14

Sheet Balance sheet
B3: Group Balance Sheet
C4: 2019-12-31 | D4: 2017-12-31
B5: Amounts in NOK million | C5: 2018 | D5: 2017
B7: Assets:
B8: Intangible assets | C8: 20610 | D8: 19921
B9: Property, plant and equipment | C9: 12760 | D9: 11683
B10: Investments in associates and other financial assets | C10: 4337 | D10: 4108
B11: Non-current assets | C11: =SUM(C8:C10) -> 37707 | D11: =SUM(D8:D10) -> 35712
B12: Inventories | C12: 5875 | D12: 5684
B13: Inventory of development property | C13: 132 | D13: 113
B14: Trade receivables | C14: 5990 | D14: 6165
B15: Other receivables | C15: 814 | D15: 883
B16: Shares and financial assets | C16: 13 | D16: 17
B17: Cash and cash equivalents | C17: 1978 | D17: 4834
B18: Current assets | C18: =SUM(C12:C17) -> 14802 | D18: =SUM(D12:D17) -> 17696
B19: Total assets | C19: =C11+C18 -> 52509 | D19: =D11+D18 -> 53408
B20: Equity and debt:
B21: Paid-in equity | C21: 1971 | D21: 1995
B22: Earned equity | C22: 31658 | D22: 32413
B23: Non-controlling interests | C23: 451 | D23: 430
B24: Equity | C24: =SUM(C21:C23) -> 34080 | D24: =SUM(D21:D23) -> 34838
B25: Provisions and other non-current liabilities | C25: 4626 | D25: 4734
B26: Non-current interest-bearing liabilities | C26: 4775 | D26: 4820
B27: Current interest-bearing liabilities | C27: 455 | D27: 359
B28: Trade payables | C28: 4907 | D28: 4940
B29: Other current liabilities | C29: 3666 | D29: 3717
B30: Equity and liabilities | C30: =SUM(C24:C29) -> 52509 | D30: =SUM(D24:D29) -> 53408
B32: Equity ratio (%): | C32: =C24/C30 -> 0.6490315946 | D32: =D24/D30 -> 0.652299281
